[Event "GER-ch Youth ODJM 2019"]
[Site "Willingen"]
[Date "2019.06.09"]
[Round "1.8"]
[White "Kesselmeier, Kevin"]
[Black "Schimnatkowski, Lukas"]
[Result "0-1"]
[ECO "B42"]
[WhiteElo "1937"]
[BlackElo "2139"]
[Annotator "NA"]
[PlyCount "70"]
[EventDate "2019.06.07"]
[EventType "swiss"]
[EventRounds "9"]
[EventCountry "GER"]
[SourceTitle "playchess.com"]
[Source "ChessBase"]
[SourceQuality "1"]
[TimeControl "40/5400+30:1800+30"]

1. e4 {[%emt 0:00:00]} c5 {[%emt 0:00:00]} 2. Nf3 {[%emt 0:00:00]} e6 {[%emt 0:00:00]} 3. d4 {[%emt 0:00:00]} cxd4 {[%emt 0:00:00]} 4. Nxd4 {[%emt 0:00:00]} a6 {[%emt 0:00:18]} 5. Bd3 {[%emt 0:00:35]} Nf6 {[%emt 0:00:12]} 6. Nc3 {[%emt 0:01:40]} d6 {[%emt 0:00:35]} 7. Be3 {[%emt 0:03:35]} Be7 {[%emt 0:00:30]} 8. O-O {[%emt 0:10:36]} Nbd7 {[%emt 0:05:38]} 9. f4 {[%emt 0:07:44]} Qc7 {[%emt 0:01:48]} 10. a4 {[%emt 0:04:12]} b6 {[%emt 0:00:35]} 11. Qf3 {[%emt 0:06:58]} Bb7 {[%emt 0:14:59]} 12. Rae1 {[%emt 0:10:51]} O-O {[%emt 0:02:31]} 13. Qh3 {[%emt 0:07:50]} Nc5 {[%emt 0:09:19]} 14. Kh1 {[%emt 0:07:57]} Nxd3 {[%emt 0:03:19]} 15. cxd3 {[%emt 0:00:07]} Rfe8 {[%emt 0:01:49]} 16. g3 {[%emt 0:07:24]} Bf8 {[%emt 0:07:15]} 17. f5 {[%emt 0:08:54]} Nd7 {[%emt 0:00:30]} 18. g4 {[%emt 0:04:22]} exf5 {[%emt 0:05:44]} 19. Nxf5 {[%emt 0:01:47]} Ne5 {[%emt 0:04:08]} 20. Bd4 {[%emt 0:01:15]} Rad8 {[%emt 0:04:22]} 21. Qe3 {[%emt 0:01:59]} Qb8 {[%emt 0:19:26]} 22. Bxb6 {[%emt 0:01:56]} Rc8 {[%emt 0:00:03]} 23. Re2 {[%emt 0:04:09]} d5 {[%emt 0:01:00]} 24. Bd4 {[%emt 0:01:28]} dxe4 {[%emt 0:03:11]} 25. Nxe4 {[%emt 0:02:25]} Rcd8 {[%emt 0:05:00]} 26. Kg1 {[%emt 0:02:15]} Kh8 {[%emt 0:04:43]} 27. Qg3 {[%emt 0:02:29]} Rxd4 {[%emt 0:02:04]} 28. Nxd4 {[%emt 0:00:43]} Qa7 {[%emt 0:00:32]} 29. Qe3 {[%emt 0:00:43]} Nxg4 {[%emt 0:01:34]} 30. Qf4 {[%emt 0:00:31]} Qxd4+ {[%emt 0:00:10]} 31. Kg2 {[%emt 0:00:03]} Ne5 {[%emt 0:01:47]} 32. Qh4 {[%emt 0:00:15]} Kg8 {[%emt 0:00:06]} 33. Qf4 {[%emt 0:00:49]} Qd5 {[%emt 0:00:11]} 34. Kg1 {[%emt 0:00:46]} Nxd3 {[%emt 0:01:03]} 35. Qxf7+ {[%emt 0:00:41]} Qxf7 {[%emt 0:00:11] normal} 0-1

[Event "GER-ch Youth ODJM 2019"]
[Site "Willingen"]
[Date "2019.06.09"]
[Round "1.8"]
[White "Werner, Tom"]
[Black "Rempe, Janne"]
[Result "1-0"]
[ECO "A10"]
[WhiteElo "1772"]
[BlackElo "1720"]
[Annotator "NA"]
[PlyCount "66"]
[EventDate "2019.06.07"]
[EventType "swiss"]
[EventRounds "9"]
[EventCountry "GER"]
[SourceTitle "playchess.com"]
[Source "ChessBase"]
[SourceQuality "1"]
[TimeControl "40/5400+30:1800+30"]

1. c4 {[%emt 0:00:00]} d6 {[%emt 0:00:00]} 2. Nc3 {[%emt 0:00:00]} Nf6 {[%emt 0:00:38]} 3. d4 {[%emt 0:00:00]} Nbd7 {[%emt 0:00:24]} 4. e4 {[%emt 0:00:00]} e5 {[%emt 0:00:45]} 5. Nf3 {[%emt 0:00:15]} Be7 {[%emt 0:00:45]} 6. Be2 {[%emt 0:00:24]} O-O {[%emt 0:00:55]} 7. O-O {[%emt 0:00:12]} c6 {[%emt 0:00:53]} 8. Qc2 {[%emt 0:00:53]} Re8 {[%emt 0:02:42]} 9. a3 {[%emt 0:02:17]} a5 {[%emt 0:02:08]} 10. Rd1 {[%emt 0:01:21]} Qc7 {[%emt 0:01:09]} 11. h3 {[%emt 0:01:17]} Nf8 {[%emt 0:00:51]} 12. Be3 {[%emt 0:01:11]} Ng6 {[%emt 0:01:13]} 13. dxe5 {[%emt 0:01:16]} dxe5 {[%emt 0:00:27]} 14. Rd2 {[%emt 0:03:08]} Bd7 {[%emt 0:02:05]} 15. Rad1 {[%emt 0:00:59]} Rad8 {[%emt 0:00:58]} 16. Na4 {[%emt 0:01:56]} Nf4 {[%emt 0:05:50]} 17. Bb6 {[%emt 0:02:11]} Qc8 {[%emt 0:03:37]} 18. Bxa5 {[%emt 0:07:07]} c5 {[%emt 0:06:26]} 19. Bxd8 {[%emt 0:00:47]} Rxd8 {[%emt 0:00:53]} 20. Nc3 {[%emt 0:05:29]} Qb8 {[%emt 0:06:49]} 21. Bf1 {[%emt 0:04:48]} h6 {[%emt 0:02:07]} 22. Ne2 {[%emt 0:08:19]} Ne6 {[%emt 0:02:07]} 23. Ng3 {[%emt 0:07:32]} g5 {[%emt 0:02:25]} 24. Nf5 {[%emt 0:01:35]} Bf8 {[%emt 0:00:31]} 25. b3 {[%emt 0:08:33]} h5 {[%emt 0:02:26]} 26. Be2 {[%emt 0:03:57]} g4 {[%emt 0:02:57]} 27. hxg4 {[%emt 0:00:55]} hxg4 {[%emt 0:00:12]} 28. Nh2 {[%emt 0:02:05]} Nd4 {[%emt 0:01:41]} 29. Nxd4 {[%emt 0:04:19]} exd4 {[%emt 0:00:28]} 30. Qd3 {[%emt 0:05:34]} Bd6 {[%emt 0:01:31]} 31. Nf1 {[%emt 0:02:26]} Bc6 {[%emt 0:04:13]} 32. Ng3 {[%emt 0:02:50]} Re8 {[%emt 0:02:26]} 33. Bf1 {[%emt 0:02:31]} Nxe4 {[%emt 0:03:44] normal} 1-0

[Event "GER-ch Youth ODJM 2019"]
[Site "Willingen"]
[Date "2019.06.09"]
[Round "1.9"]
[White "Ronge, Tim Hendrick"]
[Black "Bosselmann, Tom Linus"]
[Result "1/2-1/2"]
[ECO "A49"]
[WhiteElo "2143"]
[BlackElo "1963"]
[Annotator "NA"]
[PlyCount "112"]
[EventDate "2019.06.07"]
[EventType "swiss"]
[EventRounds "9"]
[EventCountry "GER"]
[SourceTitle "playchess.com"]
[Source "ChessBase"]
[SourceQuality "1"]
[TimeControl "40/5400+30:1800+30"]

1. d4 {[%emt 0:00:00]} Nf6 {[%emt 0:00:22]} 2. Nf3 {[%emt 0:00:00]} g6 {[%emt 0:00:08]} 3. g3 {[%emt 0:00:00]} Bg7 {[%emt 0:00:06]} 4. Bg2 {[%emt 0:00:00]} O-O {[%emt 0:00:22]} 5. O-O {[%emt 0:00:00]} d6 {[%emt 0:00:37]} 6. b3 {[%emt 0:00:06]} Nbd7 {[%emt 0:10:50]} 7. Bb2 {[%emt 0:00:11]} Qe8 {[%emt 0:07:08]} 8. Re1 {[%emt 0:01:00]} e5 {[%emt 0:06:34]} 9. dxe5 {[%emt 0:02:57]} dxe5 {[%emt 0:02:57]} 10. e4 {[%emt 0:04:18]} Qe7 {[%emt 0:09:22]} 11. Nc3 {[%emt 0:06:31]} c6 {[%emt 0:03:05]} 12. a4 {[%emt 0:09:49]} Rd8 {[%emt 0:03:46]} 13. Qe2 {[%emt 0:04:29]} Nf8 {[%emt 0:01:46]} 14. Ba3 {[%emt 0:04:39]} Qc7 {[%emt 0:02:15]} 15. h3 {[%emt 0:07:34]} Ne6 {[%emt 0:16:44]} 16. Qc4 {[%emt 0:06:41]} b6 {[%emt 0:05:46]} 17. Rad1 {[%emt 0:07:54]} Bb7 {[%emt 0:00:48]} 18. Rxd8+ {[%emt 0:13:44]} Rxd8 {[%emt 0:00:30]} 19. Rd1 {[%emt 0:00:14]} Rxd1+ {[%emt 0:02:38]} 20. Nxd1 {[%emt 0:00:07]} Nd7 {[%emt 0:00:44]} 21. c3 {[%emt 0:03:44]} Ndc5 {[%emt 0:00:55]} 22. b4 {[%emt 0:14:11]} Nxa4 {[%emt 0:03:22]} 23. Qb3 {[%emt 0:00:04]} b5 {[%emt 0:00:14]} 24. Bc1 {[%emt 0:00:47]} Nb6 {[%emt 0:03:06]} 25. Be3 {[%emt 0:00:53]} a6 {[%emt 0:01:14]} 26. Nd2 {[%emt 0:00:22]} c5 {[%emt 0:00:38]} 27. bxc5 {[%emt 0:04:19]} Na4 {[%emt 0:02:20]} 28. c4 {[%emt 0:01:25]} Naxc5 {[%emt 0:00:19]} 29. Qb4 {[%emt 0:01:45]} Bf8 {[%emt 0:02:31]} 30. Qb1 {[%emt 0:02:46]} b4 {[%emt 0:04:08]} 31. Qxb4 {[%emt 0:00:24]} Nxe4 {[%emt 0:00:14]} 32. Qb1 {[%emt 0:00:04]} Nxd2 {[%emt 0:01:07]} 33. Qxb7 {[%emt 0:00:07]} Qxb7 {[%emt 0:03:30]} 34. Bxb7 {[%emt 0:00:05]} Nxc4 {[%emt 0:00:11]} 35. Bxa6 {[%emt 0:00:08]} Nxe3 {[%emt 0:00:39]} 36. Nxe3 {[%emt 0:00:04]} Bc5 {[%emt 0:00:22]} 37. Ng4 {[%emt 0:00:52]} Bd4 {[%emt 0:01:27]} 38. Bc4 {[%emt 0:00:14]} Nd8 {[%emt 0:00:49]} 39. Bd5 {[%emt 0:00:28]} Kg7 {[%emt 0:00:16]} 40. Nh2 {[%emt 0:01:03]} h6 {[%emt 0:01:45]} 41. Kg2 {[%emt 0:31:54]} f5 {[%emt 0:30:36]} 42. h4 {[%emt 0:04:23]} Kf6 {[%emt 0:00:27]} 43. f3 {[%emt 0:00:00]} Ne6 {[%emt 0:00:00]} 44. Nf1 {[%emt 0:00:00]} Nc5 {[%emt 0:00:00]} 45. Nd2 {[%emt 0:00:00]} Nd3 {[%emt 0:00:00]} 46. Kf1 {[%emt 0:00:00]} Nb4 {[%emt 0:00:00]} 47. Bb7 {[%emt 0:00:00]} Nc2 {[%emt 0:00:00]} 48. Ke2 {[%emt 0:00:00]} Ne3 {[%emt 0:00:00]} 49. Nf1 {[%emt 0:00:00]} Nc4 {[%emt 0:00:00]} 50. Bd5 {[%emt 0:00:00]} Nd6 {[%emt 0:00:00]} 51. Nd2 {[%emt 0:00:00]} f4 {[%emt 0:00:00]} 52. g4 {[%emt 0:00:00]} h5 {[%emt 0:00:00]} 53. gxh5 {[%emt 0:00:00]} gxh5 {[%emt 0:00:00]} 54. Ne4+ {[%emt 0:00:00]} Nxe4 {[%emt 0:00:00]} 55. Bxe4 {[%emt 0:00:00]} Bc5 {[%emt 0:00:00]} 56. Kf1 {[%emt 0:00:00]} Kg7 {[%emt 0:00:00] normal} 1/2-1/2

[Event "GER-ch Youth ODJM 2019"]
[Site "Willingen"]
[Date "2019.06.09"]
[Round "1.10"]
[White "Bajorski, Marius"]
[Black "Tscheuschner, Georg"]
[Result "0-1"]
[ECO "B51"]
[WhiteElo "1967"]
[BlackElo "2113"]
[Annotator "NA"]
[PlyCount "80"]
[EventDate "2019.06.07"]
[EventType "swiss"]
[EventRounds "9"]
[EventCountry "GER"]
[SourceTitle "playchess.com"]
[Source "ChessBase"]
[SourceQuality "1"]
[TimeControl "40/5400+30:1800+30"]

1. e4 {[%emt 0:00:00]} c5 {[%emt 0:00:00]} 2. Nf3 {[%emt 0:00:00]} d6 {[%emt 0:00:00]} 3. Bb5+ {[%emt 0:00:00]} Nd7 {[%emt 0:00:00]} 4. O-O {[%emt 0:00:07]} a6 {[%emt 0:00:00]} 5. Bd3 {[%emt 0:00:05]} Ngf6 {[%emt 0:00:00]} 6. c3 {[%emt 0:01:40]} b5 {[%emt 0:00:17]} 7. Bc2 {[%emt 0:00:30]} e6 {[%emt 0:00:28]} 8. d4 {[%emt 0:02:41]} Bb7 {[%emt 0:00:18]} 9. Re1 {[%emt 0:00:56]} Be7 {[%emt 0:02:07]} 10. b3 {[%emt 0:07:18]} Qc7 {[%emt 0:09:33]} 11. Bb2 {[%emt 0:05:39]} Rc8 {[%emt 0:02:14]} 12. Bd3 {[%emt 0:04:56]} c4 {[%emt 0:19:09]} 13. bxc4 {[%emt 0:02:05]} bxc4 {[%emt 0:00:01]} 14. Bc2 {[%emt 0:00:08]} O-O {[%emt 0:19:18]} 15. Ba3 {[%emt 0:12:39]} Rfe8 {[%emt 0:00:04]} 16. Nbd2 {[%emt 0:02:41]} e5 {[%emt 0:04:57]} 17. d5 {[%emt 0:03:10]} Nb6 {[%emt 0:16:24]} 18. Nf1 {[%emt 0:08:30]} a5 {[%emt 0:00:39]} 19. Rb1 {[%emt 0:02:57]} Ba6 {[%emt 0:00:55]} 20. Ne3 {[%emt 0:03:41]} g6 {[%emt 0:01:28]} 21. Nxe5 {[%emt 0:07:49]} dxe5 {[%emt 0:06:45]} 22. Bxe7 {[%emt 0:02:03]} Nbxd5 {[%emt 0:01:41]} 23. exd5 {[%emt 0:06:17]} Qxe7 {[%emt 0:01:11]} 24. Rb6 {[%emt 0:02:12]} Ra8 {[%emt 0:01:53]} 25. Ba4 {[%emt 0:07:56]} Red8 {[%emt 0:00:16]} 26. Qf3 {[%emt 0:03:00]} Rd6 {[%emt 0:05:01]} 27. Bc6 {[%emt 0:06:22]} Qc7 {[%emt 0:01:03]} 28. Reb1 {[%emt 0:00:46]} Nd7 {[%emt 0:00:55]} 29. R6b2 {[%emt 0:03:31]} Rf8 {[%emt 0:00:41]} 30. Ng4 {[%emt 0:01:26]} f5 {[%emt 0:02:06]} 31. Ne3 {[%emt 0:00:21]} e4 {[%emt 0:02:24]} 32. Qd1 {[%emt 0:00:17]} Ne5 {[%emt 0:00:36]} 33. Rb7 {[%emt 0:03:00]} Bxb7 {[%emt 0:00:38]} 34. Rxb7 {[%emt 0:00:01]} Qd8 {[%emt 0:01:43]} 35. Qd4 {[%emt 0:00:17]} Qf6 {[%emt 0:00:28]} 36. Nxc4 {[%emt 0:01:10]} Nxc6 {[%emt 0:00:23]} 37. Qxf6 {[%emt 0:01:15]} Rdxf6 {[%emt 0:00:07]} 38. dxc6 {[%emt 0:00:24]} Rxc6 {[%emt 0:00:21]} 39. Nxa5 {[%emt 0:00:24]} Rxc3 {[%emt 0:00:07]} 40. Nb3 {[%emt 0:00:21]} Ra8 {normal} 0-1

[Event "GER-ch Youth ODJM 2019"]
[Site "Willingen"]
[Date "2019.06.09"]
[Round "1.11"]
[White "Wanner, Lukas"]
[Black "Bender, Felix"]
[Result "1-0"]
[ECO "A20"]
[WhiteElo "2099"]
[BlackElo "1678"]
[Annotator "NA"]
[PlyCount "47"]
[EventDate "2019.06.07"]
[EventType "swiss"]
[EventRounds "9"]
[EventCountry "GER"]
[SourceTitle "playchess.com"]
[Source "ChessBase"]
[SourceQuality "1"]
[TimeControl "40/5400+30:1800+30"]

1. c4 {[%emt 0:00:00]} e5 {[%emt 0:00:00]} 2. g3 {[%emt 0:00:00]} Nf6 {[%emt 0:00:16]} 3. Bg2 {[%emt 0:00:00]} d5 {[%emt 0:00:26]} 4. cxd5 {[%emt 0:00:00]} Nxd5 {[%emt 0:00:08]} 5. Nc3 {[%emt 0:00:03]} Nb6 {[%emt 0:00:08]} 6. Nf3 {[%emt 0:02:27]} Nc6 {[%emt 0:00:37]} 7. d3 {[%emt 0:02:25]} Be7 {[%emt 0:01:37]} 8. Be3 {[%emt 0:01:27]} O-O {[%emt 0:04:25]} 9. O-O {[%emt 0:02:53]} Be6 {[%emt 0:01:39]} 10. a3 {[%emt 0:16:09]} f5 {[%emt 0:11:43]} 11. b4 {[%emt 0:01:39]} f4 {[%emt 0:01:08]} 12. Bc5 {[%emt 0:01:43]} Bd6 {[%emt 0:06:19]} 13. Rc1 {[%emt 0:07:13]} a5 {[%emt 0:17:16]} 14. Bxd6 {[%emt 0:05:55]} cxd6 {[%emt 0:01:03]} 15. b5 {[%emt 0:00:43]} Nd4 {[%emt 0:02:37]} 16. Nxd4 {[%emt 0:02:07]} exd4 {[%emt 0:03:15]} 17. Ne4 {[%emt 0:01:25]} a4 {[%emt 0:03:11]} 18. Qd2 {[%emt 0:02:09]} fxg3 {[%emt 0:12:15]} 19. hxg3 {[%emt 0:00:26]} Qd7 {[%emt 0:01:26]} 20. Qb4 {[%emt 0:05:16]} Nd5 {[%emt 0:04:24]} 21. Qxd4 {[%emt 0:00:31]} Qxb5 {[%emt 0:02:34]} 22. Rb1 {[%emt 0:11:35]} Qa5 {[%emt 0:01:31]} 23. Rxb7 {[%emt 0:00:29]} Rab8 {[%emt 0:00:34]} 24. Qxg7# {[%emt 0:00:15] normal} 1-0

[Event "GER-ch Youth ODJM 2019"]
[Site "Willingen"]
[Date "2019.06.09"]
[Round "1.12"]
[White "Weimert, Miriam"]
[Black "Hartmann, Jakob"]
[Result "0-1"]
[ECO "C56"]
[WhiteElo "1903"]
[BlackElo "2144"]
[Annotator "NA"]
[PlyCount "88"]
[EventDate "2019.06.07"]
[EventType "swiss"]
[EventRounds "9"]
[EventCountry "GER"]
[SourceTitle "playchess.com"]
[Source "ChessBase"]
[SourceQuality "1"]
[TimeControl "40/5400+30:1800+30"]

1. e4 {[%emt 0:00:00]} e5 {[%emt 0:00:00]} 2. Nf3 {[%emt 0:00:41]} Nc6 {[%emt 0:00:12]} 3. d4 {[%emt 0:01:35]} exd4 {[%emt 0:00:24]} 4. Bc4 {[%emt 0:00:25]} Nf6 {[%emt 0:00:40]} 5. O-O {[%emt 0:00:18]} Nxe4 {[%emt 0:02:34]} 6. Re1 {[%emt 0:01:10]} d5 {[%emt 0:01:33]} 7. Bxd5 {[%emt 0:02:29]} Qxd5 {[%emt 0:00:38]} 8. Nc3 {[%emt 0:00:15]} Qa5 {[%emt 0:01:33]} 9. Nxe4 {[%emt 0:00:46]} Be6 {[%emt 0:01:09]} 10. Neg5 {[%emt 0:03:22]} O-O-O {[%emt 0:01:50]} 11. Nxe6 {[%emt 0:00:46]} fxe6 {[%emt 0:00:29]} 12. Rxe6 {[%emt 0:00:04]} Be7 {[%emt 0:04:50]} 13. Qe2 {[%emt 0:08:48]} Bf6 {[%emt 0:08:57]} 14. Qe4 {[%emt 0:16:11]} h5 {[%emt 0:17:16]} 15. Bd2 {[%emt 0:16:48]} Qd5 {[%emt 0:05:29]} 16. a3 {[%emt 0:08:33]} d3 {[%emt 0:12:35]} 17. c3 {[%emt 0:12:29]} Na5 {[%emt 0:09:01]} 18. Be3 {[%emt 0:08:10]} Nc4 {[%emt 0:07:31]} 19. Nd2 {[%emt 0:04:01]} Nxe3 {[%emt 0:07:13]} 20. fxe3 {[%emt 0:00:03]} Qd7 {[%emt 0:01:13]} 21. Rd1 {[%emt 0:01:20]} Rhe8 {[%emt 0:00:42]} 22. Rxe8 {[%emt 0:00:09]} Rxe8 {[%emt 0:00:07]} 23. Qf3 {[%emt 0:00:14]} Qb5 {[%emt 0:04:14]} 24. Ne4 {[%emt 0:01:43]} Qxb2 {[%emt 0:03:11]} 25. Nxf6 {[%emt 0:00:28]} gxf6 {[%emt 0:00:11]} 26. Qf5+ {[%emt 0:00:26]} Kb8 {[%emt 0:00:40]} 27. Qxd3 {[%emt 0:00:10]} a6 {[%emt 0:03:28]} 28. Rf1 {[%emt 0:01:25]} Qxa3 {[%emt 0:00:55]} 29. Rxf6 {[%emt 0:00:06]} Qe7 {[%emt 0:01:00]} 30. Rf3 {[%emt 0:00:03]} a5 {[%emt 0:00:25]} 31. Qb5 {[%emt 0:01:27]} Qe5 {[%emt 0:00:54]} 32. Qa4 {[%emt 0:01:32]} b6 {[%emt 0:01:32]} 33. Qc6 {[%emt 0:00:55]} Qe4 {[%emt 0:01:21]} 34. Qb5 {[%emt 0:00:19]} h4 {[%emt 0:00:41]} 35. h3 {[%emt 0:01:03]} Kb7 {[%emt 0:01:12]} 36. c4 {[%emt 0:01:41]} Re5 {[%emt 0:00:52]} 37. Qb3 {[%emt 0:01:04]} Rg5 {[%emt 0:00:15]} 38. Kh2 {[%emt 0:00:36]} Qe5+ {[%emt 0:00:55]} 39. Kg1 {[%emt 0:00:59]} Qe4 {[%emt 0:01:09]} 40. Kh2 {[%emt 0:00:12]} Qe5+ {[%emt 0:00:16]} 41. Kg1 {[%emt 0:30:07]} Rg3 {[%emt 0:03:55]} 42. Qd1 {[%emt 0:00:00]} a4 {[%emt 0:05:57]} 43. Rf1 {[%emt 0:00:00]} Qxe3+ {[%emt 0:01:40]} 44. Kh1 {[%emt 0:00:00]} Qe4 {[%emt 0:01:10] normal} 0-1

[Event "GER-ch Youth ODJM 2019"]
[Site "Willingen"]
[Date "2019.06.09"]
[Round "1.13"]
[White "Ortmeier, Leonhard"]
[Black "Gallasch, Robin"]
[Result "1/2-1/2"]
[ECO "A09"]
[WhiteElo "2140"]
[BlackElo "1889"]
[Annotator "NA"]
[PlyCount "102"]
[EventDate "2019.06.07"]
[EventType "swiss"]
[EventRounds "9"]
[EventCountry "GER"]
[SourceTitle "playchess.com"]
[Source "ChessBase"]
[SourceQuality "1"]
[TimeControl "40/5400+30:1800+30"]

1. Nf3 {[%emt 0:00:17]} d5 {[%emt 0:00:00]} 2. c4 {[%emt 0:00:52]} d4 {[%emt 0:00:00]} 3. b4 {[%emt 0:00:50]} e6 {[%emt 0:05:41]} 4. Bb2 {[%emt 0:04:20]} c5 {[%emt 0:07:09]} 5. d3 {[%emt 0:04:20]} Nf6 {[%emt 0:02:11]} 6. g3 {[%emt 0:03:05]} Bd6 {[%emt 0:04:02]} 7. Bg2 {[%emt 0:00:29]} Nc6 {[%emt 0:01:23]} 8. bxc5 {[%emt 0:01:01]} Bxc5 {[%emt 0:00:07]} 9. Nbd2 {[%emt 0:00:45]} O-O {[%emt 0:00:48]} 10. O-O {[%emt 0:00:53]} e5 {[%emt 0:11:03]} 11. Nb3 {[%emt 0:01:26]} Be7 {[%emt 0:02:07]} 12. Rc1 a5 {[%emt 0:03:19]} 13. Nbd2 {[%emt 0:06:04]} Nd7 {[%emt 0:04:21]} 14. Ne1 {[%emt 0:03:35]} Nc5 {[%emt 0:03:45]} 15. Nc2 {[%emt 0:04:29]} Re8 {[%emt 0:05:13]} 16. Ba3 {[%emt 0:03:13]} Ne6 {[%emt 0:02:59]} 17. Rb1 {[%emt 0:02:33]} Bxa3 {[%emt 0:07:25]} 18. Nxa3 {[%emt 0:00:07]} f5 {[%emt 0:04:56]} 19. Nb5 {[%emt 0:06:03]} a4 {[%emt 0:04:51]} 20. Qc1 {[%emt 0:02:02]} Qe7 {[%emt 0:08:40]} 21. Qa3 {[%emt 0:02:32]} Nc5 {[%emt 0:04:00]} 22. Nc7 {[%emt 0:06:11]} Qxc7 {[%emt 0:00:05]} 23. Qxc5 {[%emt 0:00:04]} Qe7 {[%emt 0:08:41]} 24. Qxe7 {[%emt 0:04:16]} Rxe7 {[%emt 0:00:09]} 25. Rb5 {[%emt 0:05:02]} Kf7 {[%emt 0:03:22]} 26. Rfb1 {[%emt 0:01:29]} Kf6 {[%emt 0:02:33]} 27. Rb6 {[%emt 0:04:53]} Re6 {[%emt 0:02:15]} 28. Bd5 {[%emt 0:05:34]} Rd6 {[%emt 0:00:07]} 29. f4 {[%emt 0:00:59]} exf4 {[%emt 0:01:44]} 30. gxf4 {[%emt 0:00:02]} Ke7 {[%emt 0:01:17]} 31. Nf3 {[%emt 0:00:35]} Kd7 {[%emt 0:00:40]} 32. Bxc6+ {[%emt 0:06:29]} bxc6 {[%emt 0:00:06]} 33. Ne5+ {[%emt 0:00:07]} Kc7 {[%emt 0:00:08]} 34. c5 {[%emt 0:00:23]} Re6 {[%emt 0:00:46]} 35. R6b4 {[%emt 0:00:15]} Ra5 {[%emt 0:00:38]} 36. Rc1 {[%emt 0:00:16]} g5 {[%emt 0:00:54]} 37. Kf2 {[%emt 0:00:36]} gxf4 {[%emt 0:00:14]} 38. Nf3 {[%emt 0:00:04]} Rh6 {[%emt 0:00:33]} 39. Rxd4 {[%emt 0:00:21]} Be6 {[%emt 0:00:40]} 40. Rd6 {[%emt 0:03:31]} Rg6 {[%emt 0:00:37]} 41. Ne5 {[%emt 0:36:17]} Rxc5 {[%emt 0:04:14]} 42. Rxe6 {[%emt 0:00:00]} Rxc1 {[%emt 0:01:01]} 43. Nxg6 {[%emt 0:00:00]} hxg6 {[%emt 0:00:08]} 44. Rxg6 {[%emt 0:00:00]} Rh1 {[%emt 0:02:03]} 45. Rh6 {[%emt 0:00:00]} Ra1 {[%emt 0:02:24]} 46. h4 {[%emt 0:00:00]} Rxa2 {[%emt 0:00:56]} 47. Rh7+ {[%emt 0:00:00]} Kd6 {[%emt 0:00:33]} 48. h5 {[%emt 0:00:00]} Ra1 {[%emt 0:01:07]} 49. h6 {[%emt 0:00:22]} Rh1 {[%emt 0:00:58]} 50. Ra7 {[%emt 0:00:37]} Rxh6 {[%emt 0:00:09]} 51. Rxa4 {[%emt 0:00:06]} Re6 {[%emt 0:01:14] normal} 1/2-1/2

[Event "GER-ch Youth ODJM 2019"]
[Site "Willingen"]
[Date "2019.06.09"]
[Round "1.14"]
[White "Kemper, Yannick"]
[Black "Stelmaszyk, Nico"]
[Result "0-1"]
[ECO "B45"]
[WhiteElo "1856"]
[BlackElo "2174"]
[Annotator "NA"]
[PlyCount "110"]
[EventDate "2019.06.07"]
[EventType "swiss"]
[EventRounds "9"]
[EventCountry "GER"]
[SourceTitle "playchess.com"]
[Source "ChessBase"]
[SourceQuality "1"]
[TimeControl "40/5400+30:1800+30"]

1. e4 {[%emt 0:00:00]} c5 {[%emt 0:00:00]} 2. Nf3 {[%emt 0:00:00]} e6 {[%emt 0:00:00]} 3. d4 {[%emt 0:00:00]} cxd4 {[%emt 0:00:00]} 4. Nxd4 {[%emt 0:00:00]} Nc6 {[%emt 0:00:00]} 5. Nc3 {[%emt 0:00:02]} Nf6 {[%emt 0:00:00]} 6. Ndb5 {[%emt 0:00:13]} d6 {[%emt 0:00:00]} 7. Bf4 {[%emt 0:00:15]} e5 {[%emt 0:00:05]} 8. Bg5 {[%emt 0:00:04]} a6 {[%emt 0:00:09]} 9. Bxf6 {[%emt 0:00:08]} gxf6 {[%emt 0:00:18]} 10. Na3 {[%emt 0:00:06]} b5 {[%emt 0:00:27]} 11. Nd5 {[%emt 0:00:15]} Bg7 {[%emt 0:00:38]} 12. Bd3 {[%emt 0:00:12]} Be6 {[%emt 0:01:10]} 13. c3 {[%emt 0:00:05]} f5 {[%emt 0:02:58]} 14. Nxb5 {[%emt 0:00:04]} axb5 {[%emt 0:00:07]} 15. Bxb5 {[%emt 0:00:05]} Bd7 {[%emt 0:01:40]} 16. exf5 {[%emt 0:00:07]} O-O {[%emt 0:10:02]} 17. O-O {[%emt 0:10:33]} e4 {[%emt 0:09:16]} 18. Re1 {[%emt 0:17:24]} Re8 {[%emt 0:04:25]} 19. a4 {[%emt 0:05:03]} Nb8 {[%emt 0:22:32]} 20. Qg4 {[%emt 0:19:40]} Re5 {[%emt 0:02:39]} 21. Bxd7 {[%emt 0:04:23]} Nxd7 {[%emt 0:00:41]} 22. f6 {[%emt 0:02:21]} Nxf6 {[%emt 0:00:08]} 23. Nxf6+ {[%emt 0:00:04]} Qxf6 {[%emt 0:00:06]} 24. Rxe4 {[%emt 0:00:39]} Rg5 {[%emt 0:14:05]} 25. Qe2 {[%emt 0:00:40]} d5 {[%emt 0:10:07]} 26. Re8+ {[%emt 0:06:01]} Rxe8 {[%emt 0:00:06]} 27. Qxe8+ {[%emt 0:00:04]} Bf8 {[%emt 0:00:07]} 28. a5 {[%emt 0:00:59]} Qf3 {[%emt 0:10:43]} 29. g3 {[%emt 0:03:11]} Rf5 {[%emt 0:00:17]} 30. Qe3 {[%emt 0:05:33]} Qxe3 {[%emt 0:00:40]} 31. fxe3 {[%emt 0:00:05]} Bc5 {[%emt 0:00:47]} 32. Re1 {[%emt 0:03:39]} Rf3 {[%emt 0:04:26]} 33. Kg2 {[%emt 0:01:20]} Rxe3 {[%emt 0:00:34]} 34. Rxe3 {[%emt 0:00:05]} Bxe3 {[%emt 0:00:05]} 35. Kf3 {[%emt 0:00:04]} Ba7 {[%emt 0:00:42]} 36. b4 {[%emt 0:02:23]} Kf8 {[%emt 0:02:50]} 37. b5 {[%emt 0:00:37]} Bc5 {[%emt 0:00:24]} 38. b6 {[%emt 0:00:29]} Ke7 {[%emt 0:00:31]} 39. Kf4 {[%emt 0:02:10]} Kf6 {[%emt 0:01:57]} 40. h4 {[%emt 0:01:38]} Bd6+ {[%emt 0:02:17]} 41. Kg4 {[%emt 0:31:30]} Bc5 {[%emt 0:30:11]} 42. Kh5 {[%emt 0:11:43]} Ke5 {[%emt 0:00:00]} 43. Kh6 {[%emt 0:00:00]} Kd6 {[%emt 0:00:00]} 44. h5 {[%emt 0:00:00]} Be3+ {[%emt 0:00:00]} 45. Kxh7 {[%emt 0:00:00]} Bd2 {[%emt 0:00:00]} 46. a6 {[%emt 0:00:00]} Kc6 {[%emt 0:00:00]} 47. b7 {[%emt 0:00:00]} Kc7 {[%emt 0:00:00]} 48. g4 {[%emt 0:00:00]} Bxc3 {[%emt 0:00:00]} 49. g5 {[%emt 0:00:00]} d4 {[%emt 0:00:00]} 50. Kg7 {[%emt 0:00:00]} d3+ {[%emt 0:00:00]} 51. Kxf7 {[%emt 0:00:00]} d2 {[%emt 0:00:00]} 52. g6 {[%emt 0:00:00]} d1=Q {[%emt 0:00:00]} 53. h6 {[%emt 0:00:00]} Qd7+ {[%emt 0:00:00]} 54. Kg8 {[%emt 0:00:00]} Qe8+ {[%emt 0:00:00]} 55. Kh7 {[%emt 0:00:00]} Qh8# {[%emt 0:00:00] normal} 0-1